Cogmind - Beta 9.3 @@@ ROGUE MODE // 2019.12.26 @ 22:56:19 Player: 3.14 Result: Self-destructed Performance ------------- Evolutions (2) 1000 Regions Visited (6) 1200 Robots Destroyed (30) 150 Value Destroyed (790) 790 Prototype IDs (0) 0 Alien Tech Used (0) 0 Bonus (282) 282 TOTAL SCORE: 3422 Bonus ------- Follower Combat Kills 82 Entered Garrisons 200 Cogmind --------- Core Integrity 109/550 Matter 222/300 Energy 145/150 System Corruption 0% Temperature Cool (1) Movement Walking (450) Ox11 Location -8/Garrison Parts ------- > --- POWER (1) -------- Micro Nuclear Core > --- PROPULSION (2) --- Aluminum Leg > --- UTILITY (6) ------ High-capacity Storage Unit High-capacity Storage Unit High-capacity Storage Unit Core Analyzer Propulsion Shielding > --- WEAPON (2) ------- Improved EM Pulse Cannon Minigun > --- INVENTORY (28) --- Micro Nuclear Core Large Storage Unit Medium Laser Medium Laser Electrolaser Improved EM Pulse Cannon Improved EM Pulse Cannon Improved EM Pulse Cannon Ion Cannon Ion Cannon Ion Cannon Plasma Cannon Plasma Cannon Plasma Cannon Plasma Cannon Light Assault Rifle Light Assault Rifle Light Assault Rifle Light Cannon Mining Laser Katana Peak State ------------ > --- POWER ------------ Micro Nuclear Core > --- PROPULSION ------- Light Treads Light Treads > --- UTILITY ---------- Improved Heat Sink High-capacity Storage Unit High-capacity Storage Unit High-capacity Storage Unit Core Analyzer Light Armor Plating > --- WEAPON ----------- Assault Rifle Light Cannon > --- INVENTORY -------- Micro Nuclear Core Micro Nuclear Core Light Treads Large Storage Unit Propulsion Shielding Medium Laser Medium Laser Electrolaser Electrolaser Electrolaser Improved EM Pulse Cannon Improved EM Pulse Cannon Improved EM Pulse Cannon Improved EM Pulse Cannon Ion Cannon Ion Cannon Ion Cannon Plasma Cannon Plasma Cannon Plasma Cannon Plasma Cannon Light Assault Rifle Light Assault Rifle Light Assault Rifle Minigun Mining Laser Katana [Rating: 26] Favorites ----------- Power Ion Engine Engine Ion Engine Power Core Micro Nuclear Core Propulsion Light Treads Treads Light Treads Leg Aluminum Leg Flight Unit Flight Unit Utility High-capacity Storage Unit Device Improved Heat Sink Storage High-capacity Storage Unit Processor Core Analyzer Protection Light Armor Plating Weapon Assault Rifle Energy Gun Electrolaser Energy Cannon Improved EM Pulse Cannon Ballistic Gun Assault Rifle Ballistic Cannon Light Cannon Slashing Weapon Katana Build | -11 -10 -10 -10 -9 -8 -8 ------- Run | Scr Mat Min Exi Min Mat Gar Slots Evolved 4 | . . . . . 4 . Power . | . . . . . . . Propulsion . | . . . . . . . Utility 4 | . . . . . 4 . Weapon . | . . . . . . . Parts Attached 33 | 7 3 . 3 . 6 14 Power 3 | 1 . . . . 1 1 Engine 1 | 1 . . . . . . Core 2 | . . . . . 1 1 Reactor . | . . . . . . . Propulsion 6 | 2 . . . . . 4 Treads 3 | 2 . . . . . 1 Leg 1 | . . . . . . 1 Wheel . | . . . . . . . Hover . | . . . . . . . Flight 2 | . . . . . . 2 Utility 13 | 2 2 . 3 . 5 1 Device 1 | . . . . . 1 . Storage 8 | 2 2 . 3 . 1 . Processor 1 | . . . . . 1 . Hackware . | . . . . . . . Protection 3 | . . . . . 2 1 Artifact . | . . . . . . . Weapon 11 | 2 1 . . . . 8 Energy Gun 2 | . . . . . . 2 Energy Cannon 2 | . . . . . . 2 Ballistic Gun 4 | 2 . . . . . 2 Ballistic Cannon 1 | . 1 . . . . . Launcher . | . . . . . . . Special Weapon . | . . . . . . . Impact Weapon . | . . . . . . . Slashing Weapon 2 | . . . . . . 2 Piercing Weapon . | . . . . . . . Special Melee Weapon . | . . . . . . . Unidentified Prototypes . | . . . . . . . Parts Lost 8 | . . . . . . 8 Power 1 | . . . . . . 1 Propulsion 3 | . . . . . . 3 Utility 2 | . . . . . . 2 Weapon 2 | . . . . . . 2 Highest Loss Streak 6 | . . . . . . 6 Average Slot Usage (%) 92 | . 100 100 100 100 87 75 Engine 10 | . 14 14 14 14 8 . Core 1 | . . . . . . 4 Treads 21 | . 28 28 28 28 18 3 Flight 1 | . . . . . . 5 Device 1 | . . . . . 8 1 Storage 26 | . 28 28 28 28 20 27 Processor 2 | . . . . . 2 9 Protection 3 | . . . . . 10 7 Ballistic Gun 13 | . 26 14 14 14 9 2 Ballistic Cannon 7 | . 1 14 14 14 9 1 Slashing Weapon 1 | . . . . . . 6 Naked Turns . | . . . . . . . Heaviest Build 111 | 16 26 26 74 74 111 111 Greatest Support 40 | 40 40 40 40 40 40 40 Greatest Overweight (x) 34 | . . . 1 1 2 34 Average Overweight (x) . | . . . . 1 1 7 Largest Inventory Capacity 28 | 8 12 12 20 20 28 28 Average Capacity 16 | 5 9 12 14 20 22 28 Most Carried 28 | 4 10 11 15 14 28 27 Average Carried 13 | 2 7 10 11 12 19 23 Final Capacity 28 | 8 12 12 20 20 28 28 Final Carried 27 | 4 10 11 12 14 27 21 Class Distribution -------------------- 52% | Mutant 47% | Hauler-Mutant Dominant Class ---------------- Mutant | -10/Materials Mutant | -10/Mines Mutant | -10/Exiles Hauler-Mutant | -9/Mines Hauler-Mutant | -8/Materials Hauler-Mutant | -8/Garrison Resources | -11 -10 -10 -10 -9 -8 -8 ----------- Run | Scr Mat Min Exi Min Mat Gar Matter Collected 797 | 282 151 71 . 62 133 98 Remotely . | . . . . . . . Salvage Created 1146 | 78 450 184 . 83 211 140 Parts 63 | 4 29 11 . 2 10 7 Haulers Intercepted . | . . . . . . . Recyclers Shooed 1 | . . 1 . . . . Parts Field Recycled . | . . . . . . . Retrieved Matter . | . . . . . . . Parts Self-Destructed . | . . . . . . . Prevented . | . . . . . . . Kills | -11 -10 -10 -10 -9 -8 -8 ------- Run | Scr Mat Min Exi Min Mat Gar Combat Hostiles Destroyed 24 | . 9 4 . 2 3 6 Melee 6 | . . . . . . 6 Guns 9 | . 6 1 . 2 . . Cannons 9 | . 3 3 . . 3 . Classes Destroyed 6 | 1 2 2 . . 1 . Builder 1 | . 1 . . . . . Tunneler 1 | . . 1 . . . . Recycler 4 | 1 1 1 . . 1 . Swarmer 7 | . . 2 . . . 5 Grunt 13 | . 9 2 . 2 . . Sentry 4 | . . . . . 3 1 Best Kill Streak 5 | 1 5 4 . 2 2 3 Combat Bots Only 4 | . 4 2 . 2 1 3 Max Kills in Single Turn 2 | 1 2 1 . 1 1 1 Gunslinging . | . . . . . . . Exploded . | . . . . . . . Melee 1 | . . . . . . 1 Uniques/NPCs Destroyed . | . . . . . . . Combat | -11 -10 -10 -10 -9 -8 -8 -------- Run | Scr Mat Min Exi Min Mat Gar Damage Taken 1934 | . 230 145 . 49 158 1352 Core 542 | . 49 41 . 11 14 427 Absorbed by Shields . | . . . . . . . Core Remaining (%) 79 | 100 . . . 59 . . Volleys Fired 74 | 3 25 11 . 5 11 19 Largest 2 | 2 2 2 . 2 2 2 Hottest 138 | 40 55 55 . 55 55 138 Shots Fired 135 | 6 50 22 . 10 22 25 Gun 91 | 6 42 11 . 5 11 16 Cannon 44 | . 8 11 . 5 11 9 Launcher . | . . . . . . . Special . | . . . . . . . Kinetic 126 | 6 50 22 . 10 22 16 Thermal 4 | . . . . . . 4 Explosive . | . . . . . . . Electromagnetic 5 | . . . . . . 5 Robot Hit Streak 13 | 3 12 8 . 3 13 5 Robot Miss Streak 3 | 2 3 2 . 1 2 3 Penetration Max . | . . . . . . . Secondary Targets . | . . . . . . . Shots Hit Robots 97 | 3 31 17 . 5 17 24 Core Hits 41 | 2 18 7 . 2 6 6 Critical Hits 3 | . 2 . . . 1 . Critical Kills 1 | . 1 . . . . . Critical Parts Destroyed 2 | . 1 . . . 1 . Melee Attacks 20 | . . . . . . 20 Impact . | . . . . . . . Slashing 20 | . . . . . . 20 Piercing . | . . . . . . . Sneak Attacks . | . . . . . . . Combat Hostiles . | . . . . . . . Follow-up Attacks . | . . . . . . . Damage Inflicted 1593 | 41 377 275 . 98 245 557 Guns 728 | 36 309 117 . 60 102 104 Cannons 470 | . 66 118 . 36 143 107 Explosions . | . . . . . . . Melee 344 | . . . . . . 344 Ramming 51 | 5 2 40 . 2 . 2 Kinetic 1107 | 36 375 235 . 96 245 120 Thermal 18 | . . . . . . 18 Explosive . | . . . . . . . Electromagnetic 73 | . . . . . . 73 Impact . | . . . . . . . Slashing 344 | . . . . . . 344 Piercing . | . . . . . . . Highest Corruption . | . . . . . . . Average Corruption . | . . . . . . . Corruption Purged . | . . . . . . . Overload Shots . | . . . . . . . Overflow Damage 33 | . . . . . . 33 Projectiles 18 | . . . . . . 18 Explosions . | . . . . . . . Melee 15 | . . . . . . 15 Knockbacks 2 | . . 2 . . . . Impact . | . . . . . . . Kinetic 2 | . . 2 . . . . Secondary . | . . . . . . . Self-Inflicted Damage . | . . . . . . . Shots . | . . . . . . . Rammed 9 | 1 1 5 . 1 . 1 Targets Rammed 10 | 1 1 6 . 1 . 1 Kicked . | . . . . . . . Crushed 1 | . . 1 . . . . Highest Temperature 86 | . 6 26 . 9 . 86 Average Temperature 23 | . 5 16 . 4 . 43 Received Heat Transfer 303 | . 132 42 . 21 45 63 Siege Activations . | . . . . . . . Robots Corrupted . | . . . . . . . Combat Hostiles . | . . . . . . . Parts Fried . | . . . . . . . Impact Corruptions . | . . . . . . . Robots Melted . | . . . . . . . Combat Hostiles . | . . . . . . . Parts Melted 1 | . . . . 1 . . Heat Transferred 37 | . . . . . . 37 Parts Sabotaged . | . . . . . . . Parts Stolen . | . . . . . . . Parts Stripped . | . . . . . . . Power Chain Reactions . | . . . . . . . Missiles Intercepted . | . . . . . . . Alert | -11 -10 -10 -10 -9 -8 -8 ------- Run | Scr Mat Min Exi Min Mat Gar Peak Influence 281 | 5 171 177 . 210 229 281 Average Influence 121 | 1 63 157 . 36 122 241 Maximum Alert Level 1 | . . . . 1 1 1 Low Security (%) 77 | 100 100 100 . 88 82 22 Level 1 22 | . . . . 11 17 77 Level 2 . | . . . . . . . Level 3 . | . . . . . . . Level 4 . | . . . . . . . Level 5 . | . . . . . . . High Security . | . . . . . . . Max Security . | . . . . . . . Squads Dispatched 6 | . 3 . . . 3 . Investigation 1 | . 1 . . . . . Extermination . | . . . . . . . Reinforcement 2 | . 2 . . . . . Assault . | . . . . . . . Garrison 3 | . . . . . 3 . Intercept . | . . . . . . . Construction Impeded . | . . . . . . . Haulers Reinforced . | . . . . . . . Stealth | -11 -10 -10 -10 -9 -8 -8 --------- Run | Scr Mat Min Exi Min Mat Gar Distress Signals . | . . . . . . . Communications Jammed . | . . . . . . . Distress Signals . | . . . . . . . Times Spotted 49 | . 14 4 . 7 5 19 Peak Tracking Total 8 | . 4 3 . 3 2 8 Tactical Retreats 9 | . . 1 . . . 8 Traps | -11 -10 -10 -10 -9 -8 -8 ------- Run | Scr Mat Min Exi Min Mat Gar Traps Triggered 2 | . 1 . . . . 1 Indirectly . | . . . . . . . Trap Hack Attempts . | . . . . . . . Triggered . | . . . . . . . Disarmed . | . . . . . . . Reprogrammed . | . . . . . . . Reused . | . . . . . . . Traps Extracted . | . . . . . . . Installed . | . . . . . . . Triggered . | . . . . . . . Machines | -11 -10 -10 -10 -9 -8 -8 ---------- Run | Scr Mat Min Exi Min Mat Gar Machines Disabled 1 | . . 1 . . . . Max in Single Turn 1 | . . 1 . . . . Machines Sabotaged . | . . . . . . . Garrisons Compromised . | . . . . . . . Overloaded Fab Kills . | . . . . . . . Fab Network Shutdowns . | . . . . . . . Hacking | -11 -10 -10 -10 -9 -8 -8 --------- Run | Scr Mat Min Exi Min Mat Gar Machines Accessed 4 | . 3 . . . 1 . Terminals 3 | . 3 . . . . . Fabricators . | . . . . . . . Repair Stations . | . . . . . . . Recycling Units . | . . . . . . . Scanalyzers . | . . . . . . . Garrison Access 1 | . . . . . 1 . Total Hacks 6 | . 5 . . . 1 . Successful 3 | . 2 . . . 1 . Failed 3 | . 3 . . . . . Catastrophic 1 | . 1 . . . . . Database Lockouts . | . . . . . . . Manual 3 | . 3 . . . . . Terminals 5 | . 5 . . . . . Fabricators . | . . . . . . . Repair Stations . | . . . . . . . Recycling Units . | . . . . . . . Scanalyzers . | . . . . . . . Garrison Access 1 | . . . . . 1 . Terminal Hacks 1 | . 1 . . . . . Robot Analysis 1 | . 1 . . . . . Fabricator Hacks . | . . . . . . . Repair Station Hacks . | . . . . . . . Recycling Unit Hacks . | . . . . . . . Scanalyzer . | . . . . . . . Garrison Access Hacks 1 | . . . . . 1 . Unlock Access 1 | . . . . . 1 . Unauthorized Hacks 4 | . 4 . . . . . Terminals 1 | . 1 . . . . . Botnet 1 | . 1 . . . . . Fabricators . | . . . . . . . Repair Stations . | . . . . . . . Recycling Units . | . . . . . . . Scanalyzers . | . . . . . . . Garrison Access . | . . . . . . . Data Cores Recovered . | . . . . . . . Used . | . . . . . . . Hacking Detections 3 | . 3 . . . . . Full Trace Events . | . . . . . . . Feedback Events . | . . . . . . . Feedback Blocked . | . . . . . . . Robot Schematics Acquired . | . . . . . . . Robots Built . | . . . . . . . Matter . | . . . . . . . Time . | . . . . . . . Total Robot Build Rating . | . . . . . . . Part Schematics Acquired . | . . . . . . . Parts Built . | . . . . . . . Matter . | . . . . . . . Time . | . . . . . . . Total Part Build Rating . | . . . . . . . Parts Repaired . | . . . . . . . Time . | . . . . . . . Parts Recycled . | . . . . . . . Recycled Matter . | . . . . . . . Retrieved Matter . | . . . . . . . Retrieved Components . | . . . . . . . Parts Scanalyzed . | . . . . . . . Part Schematics Acquired . | . . . . . . . Parts Damaged . | . . . . . . . Bothacking | -11 -10 -10 -10 -9 -8 -8 ------------ Run | Scr Mat Min Exi Min Mat Gar Used RIF Installer . | . . . . . . . Robots Hacked . | . . . . . . . Non-combat . | . . . . . . . Combat . | . . . . . . . Robot Hacks Applied . | . . . . . . . Relay Couplers Released . | . . . . . . . Robots Rewired . | . . . . . . . Allies Hacked . | . . . . . . . Hacks Repelled . | . . . . . . . Allies | -11 -10 -10 -10 -9 -8 -8 -------- Run | Scr Mat Min Exi Min Mat Gar Total Allies 4 | . . . . 4 . . Largest Group 4 | . . . . 4 1 1 Highest-Rated Group 71 | . . . . 71 16 14 Highest-Rated Ally 31 | . . . . 31 16 14 Total Orders . | . . . . . . . Ally Attacks 38 | . . . . 32 6 . Total Damage 453 | . . . . 366 87 . Kills 8 | . . . . 7 1 . Allies Corrupted . | . . . . . . . Allies Melted . | . . . . . . . Intel | -11 -10 -10 -10 -9 -8 -8 ------- Run | Scr Mat Min Exi Min Mat Gar Robot Analysis Total 1 | . 1 . . . . . Derelict Logs Recovered . | . . . . . . . Drone Launches . | . . . . . . . Drone Recoveries . | . . . . . . . Exploration | -11 -10 -10 -10 -9 -8 -8 ------------- Run | Scr Mat Min Exi Min Mat Gar Turns Passed 2408 | 102 573 290 341 266 356 480 Spaces Moved 1068 | 51 290 154 206 134 158 75 Core 6 | 3 . . . . . 3 Treads 1028 | 48 290 154 206 134 158 38 Legs 21 | . . . . . . 21 Wheels . | . . . . . . . Hover . | . . . . . . . Flight 13 | . . . . . . 13 Fastest Speed 50 | 50 160 160 160 180 180 200 Average Speed 188 | 153 160 160 162 180 184 476 Slowest Speed 2040 | 160 160 160 180 180 200 2040 Overloaded Moves . | . . . . . . . Propulsion Burnouts . | . . . . . . . Robots Hopped . | . . . . . . . Cave-ins Triggered . | . . . . . . . Exploration Rate (%) 30 | 4 47 37 61 23 20 22 Regions Visited 6 Branch Regions 3 Pre-discovered Areas . | . . . . . . . Known Exits Taken 1 | . . . . . 1 . Unknown Exits Taken 5 | 1 1 1 1 1 . . Scrap Searched . | . . . . . . . Spaces Dug . | . . . . . . . Terrain Destroyed . | . . . . . . . Melee . | . . . . . . . Projectile . | . . . . . . . AOE . | . . . . . . . Actions | -11 -10 -10 -10 -9 -8 -8 --------- Run | Scr Mat Min Exi Min Mat Gar Total 1292 | 65 352 172 212 148 203 140 Wait 38 | . 24 1 . 7 . 6 Move 1064 | 51 289 153 205 133 158 75 Hop . | . . . . . . . Pick Up 36 | 4 7 1 1 2 21 . Fast Attach 13 | 7 . . . . 3 3 Attach 8 | . . . . . 2 6 Detach . | . . . . . . . Swap 12 | . 3 . 3 . 1 5 Drop 16 | . 3 . 3 . 7 3 Fire 74 | 3 25 11 . 5 11 19 Melee 20 | . . . . . . 20 Ram . | . . . . . . . Kick . | . . . . . . . Crush 9 | . 1 6 . 1 . 1 Escape Stasis 2 | . . . . . . 2 Rewire . | . . . . . . . Trap . | . . . . . . . Miscellaneous . | . . . . . . . Route ------- -11/Scrapyard -10/Materials (discovered 2 exits: [*Mat] / [*Min]) -10/Mines (discovered 2 exits: [*Mat] / [*Exi]) -10/Exiles -9/Mines -8/Materials -8/Garrison History --------- Turn | Location | Event 9 | -11/Scrapyard | Discovered new exit (range 15) 103 | -11/Scrapyard | Entered Materials 318 | -10/Materials | Build established: Mutant 370 | -10/Materials | Discovered new exit (range 15) 603 | -10/Materials | Discovered new exit (range 14) 676 | -10/Materials | Entered Mines 812 | -10/Mines | Discovered new exit (range 5) 959 | -10/Mines | Deemed a non-threat by the Exiles lab entrance 959 | -10/Mines | Discovered new exit (range 5) 966 | -10/Mines | Entered Exiles 1006 | -10/Exiles | Met 8R-AWN 1034 | -10/Exiles | Met EX-HEX 1112 | -10/Exiles | Met EX-DEC 1162 | -10/Exiles | Met EX-BIN 1292 | -10/Exiles | Discovered new exit (range 10) 1307 | -10/Exiles | Entered Mines 1384 | -9/Mines | Received a Mining Laser from a helpful Derelict 1420 | -9/Mines | Assisted by bots powering up and referring to "LRC-V3" 1548 | -9/Mines | Build established: Hauler-Mutant 1556 | -9/Mines | Discovered new exit (range 9) 1573 | -9/Mines | Entered Materials 1573 | -8/Materials | Accompanied by 1 ally 1573 | -8/Materials | Evolved 4 slots: Utility x4 1929 | -8/Materials | Identified exit to Garrison 1929 | -8/Materials | Entered Garrison 1929 | -8/Garrison | Accompanied by 1 ally 2058 | -8/Garrison | Lost 6 parts (3n2u1w) 2071 | -8/Garrison | Core integrity fell below 50% 2154 | -8/Garrison | Triggered checkpoint 2409 | -8/Garrison | Core integrity fell below 20% 2409 | -8/Garrison | Self-destructed Last Messages --------------- 02068_ Destroyed Flight Unit. 02070_ S-10 Pest destroyed. 02084_ Dropped Electrolaser. 02091_ Destroyed Lgt. Assault Rifle. 02095_ Y-45 Defender destroyed. 02097_ S-10 Pest destroyed. 02100_ Acquired 15 matter. 02134_ Acquired Flight Unit. 02214_ Electrolaser destroyed. 02219_ S-10 Pest destroyed. 02220_ Acquired 15 matter. 02231_ Acquired 13 matter. 02261_ Acquired 30 matter. 02281_ Dropped Flight Unit. 02282_ Acquired Aluminum Leg. 02283_ Dropped Flight Unit. 02387_ C-30 ARC bursts open, deploying its payload. 02387_ S-10 Pest unfolds itself. 02397_ Destroyed Flight Unit. 02398_ S-10 Pest destroyed. Map ----- +----------------------------------------------------+ | ?????????????????????????????????????????????????? | | ?????????????????????????????????????????????????? | | ?????????????????????????????????????????????????? | | ?????????????????????????????????????????????????? | | ?????????????????????????????????????????????????? | | ?????????????????????????????????????????????????? | | ?????????????????????????????????????????????????? | | ?????????????????????????????????????????????????? | | ?????????????????????????????????????????????????? | | ?????????????????????????????????????????????????? | | ?????????????????????????????????????????????????? | | ??????????????????????######?????????????????????? | | ??????????????????????# ?? ????????????????? | | ?????????????????????? ?? ???????????????? | | ?????????????????????? ?? ??? ????????????? | | ??????????????????????# #? #?? ????????????? | | ??????????????????????# ## ## #???????????? | | ??????????????????????" "???????????? | | ??????????????????????" ????????????? | | ??????????????????????" ?????????????? | | ??????????????????????" ? ???????????????? | | ??????????????????????# #? #????#???????????? | | ????????????##+######## ## ## ###?????????? | | ????????????# s% %s ????????? | | ????????????# s ^^ ????????? | | ????????????# ##### ## @ #???????????? | | ????????????# #???# ## ## ## #????????????? | | ????????????# ##### ### #??? #????????????????? | | ????????????# # ### #?###??????????????????? | | ????????????# ##### ; =#?#%#??????????????????? | | ????????????# #???# ### =#?#[#??????????????????? | | ????????????# #???# #?# #?#=#??????????????????? | | ??#####"""### #####+###%*### #??????????????????? | | # =%* *[#??????????????????? | | # *[#####??????????????????? | | ??????#"""### ############??????????????????????? | | ????????????# #?????????????????????????????????? | | ????????????# #?????????????????????????????????? | | ????????????# #?????????????????????????????????? | | ????????????# #?????????????????????????????????? | | ????????????# #?????????????????????????????????? | | ????????????# #?????????????????????????????????? | | ????????????# #?????????????????????????????????? | | ????????????# #?????????????????????????????????? | | ????????????# #?????????????????????????????????? | | ???########## #?????????????????????????????????? | | ???# #?????????????????????????????????? | | ???# #?????????????????????????????????? | | ???# #########?????????????????????????????????? | | ???# #?????????????????????????????????????????? | +----------------------------------------------------+ Best States ------------- Heat Dissipation 45 Energy Generation 15 Energy Capacity 250 Matter Stores 300 Matter Capacity 300 Sight Range 16 Terrain Scan Density 10 Armor Coverage 150 Propulsion Shielding 33 Evasion (%) 40 Core Analysis 6 Recoil Reduction 2 Item Schematics ----------------- None Robot Schematics ------------------ None Fabricated ------------ Nothing Alien Tech Used ----------------- None Achievements -------------- None Challenges ------------ None Game ------ Seed AdvancedChargeLance Manual? 0 Play Time 00:12:24 Cumulative 400.1 hours Start 2019.12.26 @ 22:46:14 End 2019.12.26 @ 22:56:19 Sessions 1 Manual Loads 0 Difficulty Rogue Special Mode None Game No. 711 Rogue 711 Adventurer 0 Explorer 0 Win Type - Total 29 Types 22/0/3/3/1/0/0 Lore% 93 Gallery% 91 Achievement% 80 Wizard Run 0 Options --------- ASCII 1 Keyboard 0 Movement Numpad Keybinds 0 Fullscreen 0 Font 14/SmallcapsGlow Map View 76x50 Tactical HUD 1 Map Filters NONE Filters NONE Steam 1 RUN: d56b424a-33ee-494f-8833-8e84e077b0b2